[Event "Titled Tuesday Blitz October 11 Early 2022"]
[White "Papasimakopoulos, Alexandros"]
[Black "Krzywda, Andrzej"]
[WhiteFideId "4244125"]
[BlackFideId "1114565"]
[WhiteElo "2357"]
[BlackElo "2149"]
[Result "1-0"]
[Round "01"]
[TimeControl "180+1"]
[Date "2022.10.12"]
[WhiteClock "0:00:14"]
[BlackClock "0:00:04"]

1. d4 {[%clk 0:02:48]}  Nf6 {[%clk 0:02:59]} 2. c4 {[%clk 0:02:38]}  c5 {[%clk 0:02:59]} 3. d5 {[%clk 0:02:36]}  b5 {[%clk 0:03:00]} 4. Nf3 {[%clk 0:02:35]}  Bb7 {[%clk 0:02:58]} 5. a4 {[%clk 0:02:32]}  Qa5+ {[%clk 0:02:56]} 6. Bd2 {[%clk 0:02:31]}  b4 {[%clk 0:02:56]} 7. b3 {[%clk 0:02:31]}  g6 {[%clk 0:02:56]} 8. Bc1 {[%clk 0:02:31]}  Bg7 {[%clk 0:02:56]} 9. Bb2 {[%clk 0:02:32]}  O-O {[%clk 0:02:54]} 10. Qc2 {[%clk 0:02:31]}  d6 {[%clk 0:02:54]} 11. Nbd2 {[%clk 0:02:31]}  Qc7 {[%clk 0:02:48]} 12. g3 {[%clk 0:02:19]}  Nbd7 {[%clk 0:02:48]} 13. Bg2 {[%clk 0:02:19]}  Rae8 {[%clk 0:02:48]} 14. O-O {[%clk 0:02:18]}  e5 {[%clk 0:02:43]} 15. dxe6 {[%clk 0:02:16]}  Rxe6 {[%clk 0:02:43]} 16. Rfe1 {[%clk 0:02:13]}  h6 {[%clk 0:02:38]} 17. Rad1 {[%clk 0:02:12]}  Rfe8 {[%clk 0:02:36]} 18. e3 {[%clk 0:02:12]}  Ng4 {[%clk 0:02:16]} 19. Bxg7 {[%clk 0:02:12]}  Kxg7 {[%clk 0:02:17]} 20. h3 {[%clk 0:02:05]}  Nge5 {[%clk 0:02:15]} 21. Nxe5 {[%clk 0:02:05]}  Nxe5 {[%clk 0:02:13]} 22. Re2 {[%clk 0:01:43]}  Bxg2 {[%clk 0:02:04]} 23. Kxg2 {[%clk 0:01:43]}  Qb7+ {[%clk 0:02:03]} 24. Qe4 {[%clk 0:01:13]}  Qc7 {[%clk 0:01:42]} 25. Qd5 {[%clk 0:01:10]}  Qc6 {[%clk 0:01:25]} 26. Qxc6 {[%clk 0:01:08]}  Nxc6 {[%clk 0:01:26]} 27. Nf3 {[%clk 0:01:08]}  Na5 {[%clk 0:01:19]} 28. Rd3 {[%clk 0:01:07]}  Kf6 {[%clk 0:01:17]} 29. Red2 {[%clk 0:01:03]}  Rd8 {[%clk 0:01:16]} 30. Rd1 {[%clk 0:01:02]}  Nc6 {[%clk 0:01:15]} 31. Rd5 {[%clk 0:00:58]}  Na5 {[%clk 0:01:14]} 32. R1d3 {[%clk 0:00:55]}  Nc6 {[%clk 0:01:12]} 33. Ng1 {[%clk 0:00:47]}  Ke7 {[%clk 0:01:12]} 34. Ne2 {[%clk 0:00:44]}  Rf6 {[%clk 0:00:54]} 35. h4 {[%clk 0:00:40]}  h5 {[%clk 0:00:53]} 36. Nf4 {[%clk 0:00:38]}  Ne5 {[%clk 0:00:52]} 37. Rd1 {[%clk 0:00:34]}  Nc6 {[%clk 0:00:44]} 38. R5d2 {[%clk 0:00:32]}  Ke8 {[%clk 0:00:42]} 39. Nd5 {[%clk 0:00:32]}  Rf5 {[%clk 0:00:40]} 40. Nc7+ {[%clk 0:00:31]}  Ke7 {[%clk 0:00:39]} 41. Nb5 {[%clk 0:00:30]}  Rf6 {[%clk 0:00:32]} 42. Rd3 {[%clk 0:00:31]}  Rd7 {[%clk 0:00:32]} 43. Nd4 {[%clk 0:00:17]}  cxd4 {[%clk 0:00:32]} 44. exd4 {[%clk 0:00:17]}  Kd8 {[%clk 0:00:25]} 45. R1d2 {[%clk 0:00:16]}  Re7 {[%clk 0:00:25]} 46. Rd1 {[%clk 0:00:16]}  Na5 {[%clk 0:00:21]} 47. Rc1 {[%clk 0:00:14]}  Rfe6 {[%clk 0:00:19]} 48. Kf1 {[%clk 0:00:13]}  Re2 {[%clk 0:00:15]} 49. c5 {[%clk 0:00:14]}  dxc5 {[%clk 0:00:05]} 50. dxc5+ {[%clk 0:00:14]}  Kc7 {[%clk 0:00:05]} 51. Rd4 {[%clk 0:00:14]}  Nc6 {[%clk 0:00:05]} 52. Rd3 {[%clk 0:00:12]}  Rb2 {[%clk 0:00:05]} 53. Rcd1 {[%clk 0:00:12]}  a5 {[%clk 0:00:04]} 54. Rd5 {[%clk 0:00:12]}  Ne5 {[%clk 0:00:04]} 55. Re1 {[%clk 0:00:11]}  Nc6 {[%clk 0:00:02]} 56. Red1 {[%clk 0:00:10]}  Rxb3 {[%clk 0:00:02]} 57. Rd6 {[%clk 0:00:11]}  Ra3 {[%clk 0:00:01]} 58. Rf6 {[%clk 0:00:11]}  Rxa4 {[%clk 0:00:02]} 59. Rdd6 {[%clk 0:00:12]}  Nd8 {[%clk 0:00:01]} 60. Ra6 {[%clk 0:00:12]}  Ra1+ {[%clk 0:00:02]} 61. Kg2 {[%clk 0:00:12]}  b3 {[%clk 0:00:03]} 62. Ra7+ {[%clk 0:00:12]}  Kb8 {[%clk 0:00:03]} 63. Rxe7 {[%clk 0:00:12]}  b2 {[%clk 0:00:03]} 64. Rb6+ {[%clk 0:00:12]}  Kc8 {[%clk 0:00:03]} 65. Rxb2 {[%clk 0:00:13]}  a4 {[%clk 0:00:04]} 66. Rb6 {[%clk 0:00:13]}  a3 {[%clk 0:00:04]} 67. Ra6 {[%clk 0:00:14]}  a2 {[%clk 0:00:04]} 68. Ra8# {[%clk 0:00:14]} 1-0


[Site "https://www.chess.com"]

[Event "Titled Tuesday Blitz October 11 Early 2022"]
[White "Pham, Le Thao Nguyen"]
[Black "Ozen, Bahadir"]
[WhiteFideId "12401226"]
[BlackFideId "6337058"]
[WhiteElo "2282"]
[BlackElo "2503"]
[Result "0-1"]
[Round "01"]
[TimeControl "180+1"]
[Date "2022.10.12"]
[WhiteClock "0:01:05"]
[BlackClock "0:01:14"]

1. g3 {[%clk 0:03:00]}  g6 {[%clk 0:02:56]} 2. Bg2 {[%clk 0:02:59]}  Bg7 {[%clk 0:02:57]} 3. Nf3 {[%clk 0:02:59]}  Nf6 {[%clk 0:02:56]} 4. O-O {[%clk 0:02:59]}  O-O {[%clk 0:02:57]} 5. Re1 {[%clk 0:02:59]}  d6 {[%clk 0:02:54]} 6. b3 {[%clk 0:02:59]}  Ne4 {[%clk 0:02:48]} 7. c3 {[%clk 0:02:54]}  c5 {[%clk 0:02:45]} 8. Qc2 {[%clk 0:02:53]}  d5 {[%clk 0:02:40]} 9. d3 {[%clk 0:02:53]}  Nd6 {[%clk 0:02:41]} 10. Bb2 {[%clk 0:02:53]}  Nc6 {[%clk 0:02:40]} 11. e4 {[%clk 0:02:52]}  dxe4 {[%clk 0:02:35]} 12. dxe4 {[%clk 0:02:52]}  e5 {[%clk 0:02:36]} 13. Na3 {[%clk 0:02:48]}  Be6 {[%clk 0:02:36]} 14. Rad1 {[%clk 0:02:48]}  Qe7 {[%clk 0:02:36]} 15. Bf1 {[%clk 0:02:36]}  a6 {[%clk 0:02:36]} 16. Nb1 {[%clk 0:02:24]}  b5 {[%clk 0:02:35]} 17. Ba3 {[%clk 0:02:22]}  Nb7 {[%clk 0:02:34]} 18. Bc1 {[%clk 0:02:12]}  f6 {[%clk 0:02:33]} 19. a4 {[%clk 0:02:06]}  Nba5 {[%clk 0:02:24]} 20. Nbd2 {[%clk 0:02:03]}  Rfb8 {[%clk 0:02:14]} 21. axb5 {[%clk 0:02:03]}  axb5 {[%clk 0:02:15]} 22. Bb2 {[%clk 0:02:00]}  Qf7 {[%clk 0:02:14]} 23. b4 {[%clk 0:01:54]}  cxb4 {[%clk 0:02:07]} 24. cxb4 {[%clk 0:01:54]}  Nxb4 {[%clk 0:02:08]} 25. Qc5 {[%clk 0:01:53]}  Bf8 {[%clk 0:02:07]} 26. Qc3 {[%clk 0:01:50]}  Rc8 {[%clk 0:02:03]} 27. Qe3 {[%clk 0:01:39]}  Nc2 {[%clk 0:02:02]} 28. Qb6 {[%clk 0:01:39]}  Nxe1 {[%clk 0:02:02]} 29. Rxe1 {[%clk 0:01:39]}  Nc4 {[%clk 0:01:57]} 30. Nxc4 {[%clk 0:01:38]}  Bxc4 {[%clk 0:01:53]} 31. Bh3 {[%clk 0:01:37]}  Rcb8 {[%clk 0:01:53]} 32. Qe3 {[%clk 0:01:35]}  Rd8 {[%clk 0:01:49]} 33. Nd2 {[%clk 0:01:30]}  Be6 {[%clk 0:01:47]} 34. Bf1 {[%clk 0:01:28]}  Rab8 {[%clk 0:01:47]} 35. h4 {[%clk 0:01:25]}  b4 {[%clk 0:01:40]} 36. Nf3 {[%clk 0:01:23]}  b3 {[%clk 0:01:39]} 37. h5 {[%clk 0:01:23]}  Rbc8 {[%clk 0:01:38]} 38. hxg6 {[%clk 0:01:21]}  hxg6 {[%clk 0:01:39]} 39. Ba6 {[%clk 0:01:15]}  Rc2 {[%clk 0:01:38]} 40. Bc3 {[%clk 0:01:14]}  Bc5 {[%clk 0:01:38]} 41. Qxc5 {[%clk 0:01:13]}  b2 {[%clk 0:01:32]} 42. Rb1 {[%clk 0:01:08]}  Rc1+ {[%clk 0:01:32]} 43. Kg2 {[%clk 0:01:07]}  Rxb1 {[%clk 0:01:32]} 44. Ng5 {[%clk 0:01:04]}  Rg1+ {[%clk 0:01:30]} 45. Kxg1 {[%clk 0:01:04]}  b1=Q+ {[%clk 0:01:29]} 46. Kg2 {[%clk 0:01:05]}  fxg5 {[%clk 0:01:17]} 47. Qxe5 {[%clk 0:01:05]}  Bh3+ {[%clk 0:01:16]} 48. Kh2 {[%clk 0:01:04]}  Qxf2+ {[%clk 0:01:15]} 49. Kxh3 {[%clk 0:01:04]}  Qh1+ {[%clk 0:01:14]} 50. Kg4 {[%clk 0:01:05]}  Qh5# {[%clk 0:01:14]} 0-1


[Site "https://www.chess.com"]

[Event "Titled Tuesday Blitz October 11 Early 2022"]
[White "Piesik, Piotr"]
[Black "Buscar, Michael"]
[WhiteFideId "1136194"]
[BlackFideId "2603616"]
[WhiteElo "2323"]
[BlackElo "2010"]
[Result "1-0"]
[Round "01"]
[TimeControl "180+1"]
[Date "2022.10.12"]
[WhiteClock "0:00:09"]
[BlackClock "0:00:04"]

1. Nf3 {[%clk 0:02:55]}  d5 {[%clk 0:02:50]} 2. g3 {[%clk 0:02:55]}  Nc6 {[%clk 0:02:46]} 3. Bg2 {[%clk 0:02:55]}  e5 {[%clk 0:02:46]} 4. d3 {[%clk 0:02:56]}  Nf6 {[%clk 0:02:46]} 5. O-O {[%clk 0:02:56]}  Be7 {[%clk 0:02:45]} 6. Nbd2 {[%clk 0:02:57]}  Be6 {[%clk 0:02:42]} 7. e4 {[%clk 0:02:57]}  h6 {[%clk 0:02:38]} 8. c3 {[%clk 0:02:55]}  dxe4 {[%clk 0:02:30]} 9. dxe4 {[%clk 0:02:55]}  Qd7 {[%clk 0:02:30]} 10. Qc2 {[%clk 0:02:53]}  Bh3 {[%clk 0:02:27]} 11. b4 {[%clk 0:02:51]}  Bxg2 {[%clk 0:02:21]} 12. Kxg2 {[%clk 0:02:52]}  h5 {[%clk 0:02:18]} 13. b5 {[%clk 0:02:48]}  Nd8 {[%clk 0:02:17]} 14. Nxe5 {[%clk 0:02:47]}  Qe6 {[%clk 0:02:15]} 15. Nef3 {[%clk 0:02:11]}  h4 {[%clk 0:02:14]} 16. Nd4 {[%clk 0:02:00]}  Qg4 {[%clk 0:02:06]} 17. h3 {[%clk 0:01:58]}  Qh5 {[%clk 0:02:03]} 18. Qd1 {[%clk 0:01:47]}  Qh7 {[%clk 0:01:11]} 19. g4 {[%clk 0:01:42]}  Ne6 {[%clk 0:01:04]} 20. Nxe6 {[%clk 0:01:33]}  fxe6 {[%clk 0:01:04]} 21. Qe2 {[%clk 0:01:27]}  O-O-O {[%clk 0:01:02]} 22. f3 {[%clk 0:01:21]}  Qg6 {[%clk 0:00:53]} 23. Kh1 {[%clk 0:01:20]}  Nh7 {[%clk 0:00:48]} 24. Nc4 {[%clk 0:01:19]}  Ng5 {[%clk 0:00:44]} 25. Ne5 {[%clk 0:01:10]}  Qf6 {[%clk 0:00:40]} 26. Bxg5 {[%clk 0:01:10]}  Qxg5 {[%clk 0:00:40]} 27. Nf7 {[%clk 0:01:09]}  Qc5 {[%clk 0:00:37]} 28. Nxh8 {[%clk 0:01:07]}  Rxh8 {[%clk 0:00:36]} 29. Rad1 {[%clk 0:01:01]}  g5 {[%clk 0:00:36]} 30. e5 {[%clk 0:00:58]}  Rf8 {[%clk 0:00:34]} 31. Rd4 {[%clk 0:00:49]}  Qxc3 {[%clk 0:00:30]} 32. Qd3 {[%clk 0:00:45]}  Qb2 {[%clk 0:00:24]} 33. f4 {[%clk 0:00:39]}  Bc5 {[%clk 0:00:20]} 34. Rc4 {[%clk 0:00:35]}  b6 {[%clk 0:00:17]} 35. Qc2 {[%clk 0:00:32]}  Qxb5 {[%clk 0:00:15]} 36. f5 {[%clk 0:00:28]}  Qc6+ {[%clk 0:00:14]} 37. Qg2 {[%clk 0:00:28]}  Qb5 {[%clk 0:00:13]} 38. Rc2 {[%clk 0:00:16]}  Kb8 {[%clk 0:00:13]} 39. f6 {[%clk 0:00:15]}  Qd3 {[%clk 0:00:13]} 40. Re2 {[%clk 0:00:13]}  Be3 {[%clk 0:00:11]} 41. Qf3 {[%clk 0:00:09]}  Qb5 {[%clk 0:00:05]} 42. Rxe3 {[%clk 0:00:09]}  Rd8 {[%clk 0:00:05]} 43. f7 {[%clk 0:00:09]}  Rd2 {[%clk 0:00:04]} 44. f8=Q+ {[%clk 0:00:09]} 1-0


[Site "https://www.chess.com"]

[Event "Titled Tuesday Blitz October 11 Early 2022"]
[White "Pimpalkhare, Vedant"]
[Black "Marin Ramirez, Gerardo"]
[WhiteFideId "25048236"]
[BlackFideId "3901068"]
[WhiteElo "2182"]
[BlackElo "2041"]
[Result "1-0"]
[Round "01"]
[TimeControl "180+1"]
[Date "2022.10.12"]
[WhiteClock "0:01:34"]
[BlackClock "0:00:29"]

1. d4 {[%clk 0:03:00]}  d5 {[%clk 0:02:57]} 2. Nf3 {[%clk 0:02:59]}  c6 {[%clk 0:02:56]} 3. e3 {[%clk 0:02:57]}  Nf6 {[%clk 0:02:55]} 4. c4 {[%clk 0:02:56]}  Bg4 {[%clk 0:02:43]} 5. Nbd2 {[%clk 0:02:50]}  e6 {[%clk 0:02:42]} 6. Bd3 {[%clk 0:02:42]}  Be7 {[%clk 0:02:33]} 7. O-O {[%clk 0:02:39]}  O-O {[%clk 0:02:33]} 8. b3 {[%clk 0:02:37]}  c5 {[%clk 0:02:26]} 9. Bb2 {[%clk 0:02:36]}  cxd4 {[%clk 0:02:25]} 10. Bxd4 {[%clk 0:02:26]}  Nc6 {[%clk 0:02:25]} 11. Bb2 {[%clk 0:02:25]}  Qa5 {[%clk 0:01:54]} 12. cxd5 {[%clk 0:02:17]}  exd5 {[%clk 0:01:47]} 13. a3 {[%clk 0:02:11]}  Rfd8 {[%clk 0:01:42]} 14. b4 {[%clk 0:02:08]}  Qb6 {[%clk 0:01:37]} 15. Qb3 {[%clk 0:02:08]}  a5 {[%clk 0:01:16]} 16. b5 {[%clk 0:02:07]}  a4 {[%clk 0:01:16]} 17. Qc2 {[%clk 0:02:03]}  Na5 {[%clk 0:01:12]} 18. Bd4 {[%clk 0:02:02]}  Qe6 {[%clk 0:01:01]} 19. Ng5 {[%clk 0:01:57]}  Qd7 {[%clk 0:00:55]} 20. Bxh7+ {[%clk 0:01:53]}  Kf8 {[%clk 0:00:52]} 21. Bd3 {[%clk 0:01:50]}  Nc4 {[%clk 0:00:50]} 22. Bxf6 {[%clk 0:01:44]}  gxf6 {[%clk 0:00:36]} 23. Bxc4 {[%clk 0:01:37]}  dxc4 {[%clk 0:00:30]} 24. Qh7 {[%clk 0:01:35]}  fxg5 {[%clk 0:00:29]} 25. Qh8# {[%clk 0:01:34]} 1-0


[Site "https://www.chess.com"]

[Event "Titled Tuesday Blitz October 11 Early 2022"]
[White "Predke, Alexandr"]
[Black "Carbone, Diego"]
[WhiteFideId "24107581"]
[BlackFideId "3002179"]
[WhiteElo "2614"]
[BlackElo "2243"]
[Result "1-0"]
[Round "01"]
[TimeControl "180+1"]
[Date "2022.10.12"]
[WhiteClock "0:00:08"]
[BlackClock "0:00:03"]

1. Nf3 {[%clk 0:03:00]}  Nf6 {[%clk 0:02:59]} 2. c4 {[%clk 0:03:00]}  g6 {[%clk 0:02:57]} 3. Nc3 {[%clk 0:02:59]}  d5 {[%clk 0:02:57]} 4. cxd5 {[%clk 0:02:58]}  Nxd5 {[%clk 0:02:58]} 5. h4 {[%clk 0:02:58]}  Nxc3 {[%clk 0:02:56]} 6. bxc3 {[%clk 0:02:58]}  Bg7 {[%clk 0:02:57]} 7. h5 {[%clk 0:02:57]}  c5 {[%clk 0:02:57]} 8. hxg6 {[%clk 0:02:40]}  hxg6 {[%clk 0:02:54]} 9. Rxh8+ {[%clk 0:02:41]}  Bxh8 {[%clk 0:02:55]} 10. Qa4+ {[%clk 0:02:41]}  Nc6 {[%clk 0:02:39]} 11. Qf4 {[%clk 0:02:39]}  Qd6 {[%clk 0:02:26]} 12. Qh6 {[%clk 0:02:28]}  Bf6 {[%clk 0:02:26]} 13. Ba3 {[%clk 0:02:03]}  b6 {[%clk 0:01:26]} 14. d4 {[%clk 0:01:56]}  Bd7 {[%clk 0:01:01]} 15. e4 {[%clk 0:01:42]}  e5 {[%clk 0:00:55]} 16. dxc5 {[%clk 0:01:38]}  Qe7 {[%clk 0:00:44]} 17. Ba6 {[%clk 0:01:33]}  bxc5 {[%clk 0:00:28]} 18. Qe3 {[%clk 0:01:09]}  Rb8 {[%clk 0:00:08]} 19. Rd1 {[%clk 0:00:57]}  Bg4 {[%clk 0:00:03]} 20. Qxc5 {[%clk 0:00:45]}  Qxc5 {[%clk 0:00:03]} 21. Bxc5 {[%clk 0:00:46]}  Be7 {[%clk 0:00:02]} 22. Bxe7 {[%clk 0:00:34]}  Kxe7 {[%clk 0:00:03]} 23. Bc4 {[%clk 0:00:34]}  Bxf3 {[%clk 0:00:03]} 24. gxf3 {[%clk 0:00:34]}  Rb2 {[%clk 0:00:03]} 25. Bd5 {[%clk 0:00:30]}  Nd8 {[%clk 0:00:03]} 26. Rd2 {[%clk 0:00:20]}  Rb1+ {[%clk 0:00:04]} 27. Ke2 {[%clk 0:00:20]}  Rc1 {[%clk 0:00:04]} 28. Kd3 {[%clk 0:00:20]}  Ne6 {[%clk 0:00:04]} 29. Bxe6 {[%clk 0:00:17]}  Kxe6 {[%clk 0:00:05]} 30. Rc2 {[%clk 0:00:17]}  Rd1+ {[%clk 0:00:05]} 31. Ke2 {[%clk 0:00:15]}  Ra1 {[%clk 0:00:04]} 32. Rd2 {[%clk 0:00:16]}  Rc1 {[%clk 0:00:04]} 33. Kd3 {[%clk 0:00:16]}  Ra1 {[%clk 0:00:04]} 34. Kc4 {[%clk 0:00:15]}  Rc1 {[%clk 0:00:03]} 35. Kb3 {[%clk 0:00:15]}  Ke7 {[%clk 0:00:03]} 36. c4 {[%clk 0:00:14]}  Ke6 {[%clk 0:00:02]} 37. Kb4 {[%clk 0:00:14]}  Rb1+ {[%clk 0:00:02]} 38. Kc5 {[%clk 0:00:14]}  Rc1 {[%clk 0:00:03]} 39. Kb5 {[%clk 0:00:15]}  f5 {[%clk 0:00:03]} 40. c5 {[%clk 0:00:13]}  fxe4 {[%clk 0:00:03]} 41. fxe4 {[%clk 0:00:14]}  Re1 {[%clk 0:00:03]} 42. c6 {[%clk 0:00:13]}  Rc1 {[%clk 0:00:03]} 43. a4 {[%clk 0:00:09]}  Rb1+ {[%clk 0:00:03]} 44. Ka6 {[%clk 0:00:08]}  Rc1 {[%clk 0:00:03]} 45. Kb7 {[%clk 0:00:08]}  Rb1+ {[%clk 0:00:03]} 46. Kc8 {[%clk 0:00:08]}  Rc1 {[%clk 0:00:03]} 47. c7 {[%clk 0:00:08]} 1-0


[Site "https://www.chess.com"]

[Event "Titled Tuesday Blitz October 11 Early 2022"]
[White "Prokofiev, Valentyn"]
[Black "Valle Maytin, Luis Enrique"]
[WhiteFideId "14160161"]
[BlackFideId "3503666"]
[WhiteElo "2259"]
[BlackElo "2225"]
[Result "1-0"]
[Round "01"]
[TimeControl "180+1"]
[Date "2022.10.12"]
[WhiteClock "0:00:12"]
[BlackClock "0:00:08"]

1. d4 {[%clk 0:03:00]}  Nf6 {[%clk 0:02:59]} 2. c4 {[%clk 0:03:00]}  e6 {[%clk 0:02:59]} 3. Nf3 {[%clk 0:02:57]}  d5 {[%clk 0:02:53]} 4. e3 {[%clk 0:02:57]}  c5 {[%clk 0:02:53]} 5. cxd5 {[%clk 0:02:57]}  exd5 {[%clk 0:02:53]} 6. Bb5+ {[%clk 0:02:57]}  Bd7 {[%clk 0:02:52]} 7. Bxd7+ {[%clk 0:02:50]}  Nbxd7 {[%clk 0:02:53]} 8. O-O {[%clk 0:02:50]}  Be7 {[%clk 0:02:51]} 9. b3 {[%clk 0:02:50]}  Rc8 {[%clk 0:02:46]} 10. dxc5 {[%clk 0:02:50]}  Nxc5 {[%clk 0:02:45]} 11. Bb2 {[%clk 0:02:50]}  O-O {[%clk 0:02:45]} 12. Nc3 {[%clk 0:02:48]}  Nce4 {[%clk 0:02:44]} 13. Qd3 {[%clk 0:02:43]}  Nxc3 {[%clk 0:02:40]} 14. Bxc3 {[%clk 0:02:43]}  Ne4 {[%clk 0:02:41]} 15. Bd4 {[%clk 0:02:41]}  Bf6 {[%clk 0:02:38]} 16. Rad1 {[%clk 0:02:40]}  Bxd4 {[%clk 0:02:36]} 17. Nxd4 {[%clk 0:02:24]}  Qf6 {[%clk 0:02:34]} 18. Nf3 {[%clk 0:02:14]}  Rfd8 {[%clk 0:02:32]} 19. Rc1 {[%clk 0:02:09]}  Rc6 {[%clk 0:02:06]} 20. Rxc6 {[%clk 0:01:46]}  bxc6 {[%clk 0:02:07]} 21. Qa6 {[%clk 0:01:46]}  g5 {[%clk 0:01:49]} 22. Nd4 {[%clk 0:01:34]}  c5 {[%clk 0:01:43]} 23. Qxf6 {[%clk 0:01:31]}  Nxf6 {[%clk 0:01:44]} 24. Nf5 {[%clk 0:01:31]}  Ne4 {[%clk 0:01:34]} 25. Rd1 {[%clk 0:01:24]}  Nc3 {[%clk 0:01:32]} 26. Rd2 {[%clk 0:01:23]}  Kf8 {[%clk 0:01:30]} 27. h3 {[%clk 0:01:19]}  f6 {[%clk 0:01:26]} 28. Rc2 {[%clk 0:01:10]}  d4 {[%clk 0:01:22]} 29. exd4 {[%clk 0:01:10]}  cxd4 {[%clk 0:01:20]} 30. Nxd4 {[%clk 0:01:09]}  Rxd4 {[%clk 0:01:20]} 31. Rxc3 {[%clk 0:01:10]}  a5 {[%clk 0:01:08]} 32. Rc7 {[%clk 0:01:09]}  Kg8 {[%clk 0:01:08]} 33. Ra7 {[%clk 0:01:09]}  Rd5 {[%clk 0:01:04]} 34. g4 {[%clk 0:01:05]}  f5 {[%clk 0:00:58]} 35. Kg2 {[%clk 0:01:03]}  f4 {[%clk 0:00:54]} 36. Kf3 {[%clk 0:01:00]}  Re5 {[%clk 0:00:54]} 37. h4 {[%clk 0:00:46]}  h6 {[%clk 0:00:52]} 38. h5 {[%clk 0:00:45]}  Kh8 {[%clk 0:00:46]} 39. Rf7 {[%clk 0:00:40]}  a4 {[%clk 0:00:36]} 40. Rf5 {[%clk 0:00:26]}  Re1 {[%clk 0:00:31]} 41. bxa4 {[%clk 0:00:26]}  Ra1 {[%clk 0:00:31]} 42. Ra5 {[%clk 0:00:14]}  Rxa2 {[%clk 0:00:30]} 43. Ra7 {[%clk 0:00:14]}  Kg8 {[%clk 0:00:25]} 44. a5 {[%clk 0:00:14]}  Kh8 {[%clk 0:00:23]} 45. a6 {[%clk 0:00:15]}  Kg8 {[%clk 0:00:23]} 46. Ke4 {[%clk 0:00:07]}  Rxf2 {[%clk 0:00:20]} 47. Kf5 {[%clk 0:00:07]}  Rb2 {[%clk 0:00:17]} 48. Rb7 {[%clk 0:00:07]}  Ra2 {[%clk 0:00:16]} 49. a7 {[%clk 0:00:07]}  Ra5+ {[%clk 0:00:15]} 50. Ke4 {[%clk 0:00:06]}  Ra4+ {[%clk 0:00:16]} 51. Kd3 {[%clk 0:00:07]}  Ra3+ {[%clk 0:00:15]} 52. Kc2 {[%clk 0:00:07]}  f3 {[%clk 0:00:07]} 53. Rb8+ {[%clk 0:00:08]}  Kf7 {[%clk 0:00:07]} 54. a8=Q {[%clk 0:00:08]}  Rxa8 {[%clk 0:00:06]} 55. Rxa8 {[%clk 0:00:09]}  f2 {[%clk 0:00:07]} 56. Ra1 {[%clk 0:00:10]}  Ke6 {[%clk 0:00:07]} 57. Rf1 {[%clk 0:00:10]}  Ke5 {[%clk 0:00:07]} 58. Rxf2 {[%clk 0:00:11]}  Ke4 {[%clk 0:00:08]} 59. Rf6 {[%clk 0:00:12]} 1-0


[Site "https://www.chess.com"]

[Event "Titled Tuesday Blitz October 11 Early 2022"]
[White "Ronka, Erik"]
[Black "Lazavik, Denis"]
[WhiteFideId "505080"]
[BlackFideId "13515110"]
[WhiteElo "2264"]
[BlackElo "2437"]
[Result "1/2-1/2"]
[Round "01"]
[TimeControl "180+1"]
[Date "2022.10.11"]
[WhiteClock "0:00:03"]
[BlackClock "0:00:05"]

1. e4 {[%clk 0:02:59]}  c5 {[%clk 0:02:59]} 2. Nf3 {[%clk 0:02:59]}  e6 {[%clk 0:03:00]} 3. Nc3 {[%clk 0:02:59]}  Nc6 {[%clk 0:03:00]} 4. d4 {[%clk 0:02:58]}  cxd4 {[%clk 0:03:00]} 5. Nxd4 {[%clk 0:02:59]}  Qc7 {[%clk 0:03:00]} 6. Be3 {[%clk 0:02:59]}  a6 {[%clk 0:03:00]} 7. Qd2 {[%clk 0:03:00]}  Nf6 {[%clk 0:02:55]} 8. O-O-O {[%clk 0:03:00]}  Be7 {[%clk 0:02:50]} 9. f3 {[%clk 0:03:00]}  b5 {[%clk 0:02:49]} 10. Nxc6 {[%clk 0:02:51]}  dxc6 {[%clk 0:02:47]} 11. Qf2 {[%clk 0:02:51]}  e5 {[%clk 0:02:43]} 12. Bc5 {[%clk 0:02:47]}  Be6 {[%clk 0:02:36]} 13. Kb1 {[%clk 0:02:29]}  O-O {[%clk 0:02:34]} 14. g4 {[%clk 0:02:28]}  Rfd8 {[%clk 0:02:23]} 15. Bd3 {[%clk 0:02:27]}  Bxc5 {[%clk 0:02:21]} 16. Qxc5 {[%clk 0:02:28]}  Nd7 {[%clk 0:02:21]} 17. Qe3 {[%clk 0:02:26]}  Qa5 {[%clk 0:02:20]} 18. a3 {[%clk 0:01:48]}  b4 {[%clk 0:02:16]} 19. axb4 {[%clk 0:01:49]}  Qxb4 {[%clk 0:02:16]} 20. Na2 {[%clk 0:01:13]}  Qb7 {[%clk 0:01:56]} 21. Be2 {[%clk 0:01:08]}  a5 {[%clk 0:01:43]} 22. Rd6 {[%clk 0:00:57]}  Rdb8 {[%clk 0:01:40]} 23. Qc3 {[%clk 0:00:39]}  Nb6 {[%clk 0:01:05]} 24. Qxc6 {[%clk 0:00:27]}  Qe7 {[%clk 0:01:04]} 25. Ka1 {[%clk 0:00:21]}  h6 {[%clk 0:01:00]} 26. Rhd1 {[%clk 0:00:19]}  a4 {[%clk 0:00:57]} 27. Nc3 {[%clk 0:00:16]}  Kh7 {[%clk 0:00:36]} 28. Nd5 {[%clk 0:00:12]}  Nxd5 {[%clk 0:00:21]} 29. exd5 {[%clk 0:00:13]}  Rc8 {[%clk 0:00:20]} 30. Rxe6 {[%clk 0:00:07]}  fxe6 {[%clk 0:00:18]} 31. Qxe6 {[%clk 0:00:07]}  Qf6 {[%clk 0:00:10]} 32. Bd3+ {[%clk 0:00:07]}  Kh8 {[%clk 0:00:10]} 33. Bf5 {[%clk 0:00:06]}  a3 {[%clk 0:00:09]} 34. Qxf6 {[%clk 0:00:06]}  axb2+ {[%clk 0:00:08]} 35. Kxb2 {[%clk 0:00:07]}  Rcb8+ {[%clk 0:00:09]} 36. Kc3 {[%clk 0:00:07]}  gxf6 {[%clk 0:00:09]} 37. Kd3 {[%clk 0:00:07]}  Ra3+ {[%clk 0:00:09]} 38. c3 {[%clk 0:00:05]}  Kg7 {[%clk 0:00:09]} 39. Be4 {[%clk 0:00:04]}  Rb7 {[%clk 0:00:09]} 40. h4 {[%clk 0:00:05]}  Rc7 {[%clk 0:00:10]} 41. Rc1 {[%clk 0:00:04]}  Kf7 {[%clk 0:00:10]} 42. Kd2 {[%clk 0:00:05]}  Ke7 {[%clk 0:00:11]} 43. c4 {[%clk 0:00:05]}  Kd6 {[%clk 0:00:11]} 44. Rb1 {[%clk 0:00:05]}  Kc5 {[%clk 0:00:09]} 45. Rc1 {[%clk 0:00:04]}  Rb7 {[%clk 0:00:09]} 46. Rc2 {[%clk 0:00:03]}  Rbb3 {[%clk 0:00:08]} 47. h5 {[%clk 0:00:03]}  Ra4 {[%clk 0:00:07]} 48. Ke2 {[%clk 0:00:03]}  Rbb4 {[%clk 0:00:06]} 49. Rd2 {[%clk 0:00:04]}  Rb6 {[%clk 0:00:06]} 50. Bd3 {[%clk 0:00:03]}  Ra3 {[%clk 0:00:05]} 51. Ke3 {[%clk 0:00:03]}  Rbb3 {[%clk 0:00:04]} 52. Ke4 {[%clk 0:00:04]}  Kd6 {[%clk 0:00:05]} 53. Rd1 {[%clk 0:00:01]}  Rc3 {[%clk 0:00:05]} 54. Rd2 {[%clk 0:00:01]}  Rab3 {[%clk 0:00:05]} 55. Rd1 {[%clk 0:00:02]}  Ra3 {[%clk 0:00:05]} 56. Rd2 {[%clk 0:00:02]}  Kc5 {[%clk 0:00:06]} 57. Rd1 {[%clk 0:00:03]}  Kd6 {[%clk 0:00:05]} 1/2-1/2


[Site "https://www.chess.com"]